lending/lending_fUSD_20240417
["ID","MTS","AMOUNT","RATE_DAILY","PERIOD"]
[322840848,1713387043749,-2224.1821186,0.000209,2]
[322840849,1713387043758,-153.10486378,0.000209,2]
[322840850,1713387043768,-1340.85258782,0.000209,2]
[322840851,1713387043778,-185.21347204,0.000209,2]
[322840852,1713387043787,-1362.12388336,0.000209,2]
[322840853,1713387043796,-321.10142717,0.000209,2]
[322840854,1713387043806,-782.31773617,0.000209,2]
[322840855,1713387043815,-673.33695829,0.000209,2]
[322840856,1713387043824,-17149.53652487,0.000209,2]
[322840857,1713387043834,-169.68459532,0.000209,2]
[322840858,1713387043844,-150.0,0.00020907,2]
[322840859,1713387043853,-150.0,0.00020923,2]
[322840860,1713387043863,-300.0,0.00020934,2]
[322840861,1713387043873,-150.0,0.00020944,2]
[322840862,1713387043882,-150.0,0.0002095,2]
[322840863,1713387043893,-622.06788422,0.0002098,2]
[322840864,1713387043902,-3202.34466835,0.00020984,2]
[322840865,1713387043911,-151.0,0.00020986,2]
[322840866,1713387043920,-151.730034,0.00020986,2]
[322840867,1713387043929,-151.0,0.00020986,2]
[322840868,1713387043938,-151.0,0.00020986,2]
[322840869,1713387043947,-282.295532,0.00020986,2]
[322840870,1713387043956,-282.295532,0.00020986,2]
[322840871,1713387043965,-151.0,0.00020986,2]
[322840872,1713387043974,-151.0,0.00020986,2]
[322840873,1713387043984,-396.9,0.00020986,2]
[322840874,1713387043993,-396.9,0.00020986,2]
[322840875,1713387044002,-151.0,0.00020986,2]
[322840876,1713387044012,-151.0,0.00020986,2]
[322840877,1713387044021,-151.0,0.00020986,2]
[322840878,1713387044031,-151.0,0.00020986,2]
[322840879,1713387044040,-150.0,0.00020986,2]
[322840880,1713387044049,-315.577388,0.00020986,2]
[322840881,1713387044059,-315.577388,0.00020986,2]
[322840882,1713387044068,-151.0,0.00020986,2]
[322840883,1713387044077,-151.0,0.00020986,2]
[322840884,1713387044086,-151.0,0.00020986,2]
[322840885,1713387044096,-151.0,0.00020986,2]
[322840886,1713387044105,-151.0,0.00020986,2]
[322840887,1713387044114,-298.556171,0.00020986,2]
[322840888,1713387044123,-151.0,0.00020986,2]
[322840889,1713387044133,-151.0,0.00020986,2]
[322840890,1713387044146,-214.63214,0.00020986,2]
[322840891,1713387044155,-214.63214,0.00020986,2]
[322840892,1713387044165,-1025.156381,0.00020986,2]
[322840893,1713387044174,-5498.6968303,0.00020986,2]
[322840894,1713387044184,-1025.156381,0.00020986,2]
[322840895,1713387044193,-151.0,0.00020986,2]
[322840896,1713387044202,-151.0,0.00020986,2]
[322840897,1713387044212,-151.0,0.00020986,2]
[322840898,1713387044222,-145611.4777269,0.00020986,2]
[322840899,1713387044231,-115987.3527419,0.00020986,2]
[322840900,1713387044241,-221.074449,0.00020986,2]
[322840901,1713387044250,-221.074449,0.00020986,2]
[322840902,1713387044260,-182.660719,0.00020986,2]
[322840903,1713387044269,-182.660719,0.00020986,2]
[322840904,1713387044279,-151.0,0.00020986,2]
[322840905,1713387044289,-279.63468,0.00020986,2]
[322840906,1713387044298,-279.63468,0.00020986,2]
[322840907,1713387044307,-10786.2284708,0.00020986,2]
[322840908,1713387044317,-8591.8095601,0.00020986,2]
[322840909,1713387044327,-155.698316,0.00020986,2]
[322840910,1713387044336,-155.698316,0.00020986,2]
[322840911,1713387044346,-151.0,0.00020986,2]
[322840912,1713387044356,-151.0,0.00020986,2]
[322840913,1713387044366,-151.0,0.00020986,2]
[322840914,1713387044376,-151.0,0.00020986,2]
[322840915,1713387044386,-153.398531,0.00020986,2]
[322840916,1713387044400,-2212.815014,0.00020986,2]
[322840917,1713387044409,-2212.815014,0.00020986,2]
[322840918,1713387044419,-153.398531,0.00020986,2]
[322840919,1713387044429,-151.0,0.00020986,2]
[322840920,1713387044438,-151.0,0.00020986,2]
[322840921,1713387044447,-390.975907,0.00020986,2]
[322840922,1713387044457,-390.975907,0.00020986,2]
[322840923,1713387044466,-151.0,0.00020986,2]
[322840924,1713387044485,-151.0,0.00020986,2]
[322840925,1713387044498,-256.642579,0.00020986,2]
[322840926,1713387044508,-151.0,0.00020986,2]
[322840927,1713387044517,-19612.6930859,0.00020986,2]
[322840928,1713387044527,-151.0,0.00020986,2]
[322840929,1713387044537,-15622.5620856,0.00020986,2]
[322840930,1713387044547,-272.066124,0.00020986,2]
[322840931,1713387044556,-151.0,0.00020986,2]
[322840932,1713387044567,-151.0,0.00020986,2]
[322840933,1713387044577,-318.560075,0.00020986,2]
[322840934,1713387044587,-318.560075,0.00020986,2]
[322840935,1713387044597,-158.798036,0.00020986,2]
[322840936,1713387044607,-158.798036,0.00020986,2]
[322840937,1713387044617,-151.0,0.00020986,2]
[322840938,1713387044627,-151.0,0.00020986,2]
[322840939,1713387044638,-151.0,0.00020986,2]
[322840940,1713387044648,-1360.699118,0.00020986,2]
[322840941,1713387044660,-1360.699118,0.00020986,2]
[322840942,1713387044671,-188.289725,0.00020986,2]
[322840943,1713387044682,-178.212069,0.00020986,2]
[322840944,1713387044692,-178.212069,0.00020986,2]
[322840945,1713387044704,-244.455005,0.00020986,2]
[322840946,1713387044714,-244.455005,0.00020986,2]
[322840947,1713387044724,-243.52693,0.00020986,2]
[322840948,1713387044735,-222.78603,0.00020986,2]
[322840949,1713387044745,-151.0,0.00020986,2]
[322840950,1713387044755,-243.52693,0.00020986,2]
[322840951,1713387044764,-222.78603,0.00020986,2]
[322840952,1713387044774,-151.0,0.00020986,2]
[322840953,1713387044783,-151.0,0.00020986,2]
[322840954,1713387044793,-151.0,0.00020986,2]
[322840955,1713387044803,-151.0,0.00020986,2]
[322840956,1713387044813,-240.913985,0.00020986,2]
[322840957,1713387044824,-240.913985,0.00020986,2]
[322840958,1713387044833,-151.657462,0.00020986,2]
[322840959,1713387044843,-151.0,0.00020986,2]
[322840960,1713387044852,-151.0,0.00020986,2]
[322840961,1713387044861,-151.0,0.00020986,2]
[322840962,1713387044870,-151.0,0.00020986,2]
[322840963,1713387044880,-1201.0,0.00020986,2]
[322840964,1713387044892,-300.0,0.00020988,2]
[322840965,1713387044904,-249.16556301,0.0002099,2]
[322840966,1713387044913,-221.78058449,0.00020995,2]
[322840967,1713387044922,-256291.21802776,0.00020995,2]
[322840968,1713387044931,-151.0,0.00020995,2]
[322840969,1713387044940,-151.0,0.00020995,2]
[322840970,1713387044950,-258.790554,0.00020995,2]
[322840971,1713387044958,-151.0,0.00020995,2]
[322840972,1713387044967,-151.0,0.00020995,2]
[322840973,1713387044976,-2212.815014,0.00020995,2]
[322840974,1713387044985,-153.398531,0.00020995,2]
[322840975,1713387044995,-2212.815014,0.00020995,2]
[322840976,1713387045005,-153.398531,0.00020995,2]
[322840977,1713387045014,-151.0,0.00020995,2]
[322840978,1713387045024,-390.975907,0.00020995,2]
[322840979,1713387045033,-390.975907,0.00020995,2]
[322840980,1713387045043,-151.0,0.00020995,2]
[322840981,1713387045053,-151.0,0.00020995,2]
[322840982,1713387045063,-151.0,0.00020995,2]
[322840983,1713387045073,-151.0,0.00020995,2]
[322840984,1713387045083,-151.0,0.00020995,2]
[322840985,1713387045093,-151.0,0.00020995,2]
[322840986,1713387045103,-318.560075,0.00020995,2]
[322840987,1713387045113,-318.560075,0.00020995,2]
[322840988,1713387045123,-158.798036,0.00020995,2]
[322840989,1713387045132,-158.798036,0.00020995,2]
[322840990,1713387045146,-151.0,0.00020995,2]
[322840991,1713387045156,-151.0,0.00020995,2]
[322840992,1713387045165,-152.001585,0.00020995,2]
[322840993,1713387045174,-1360.699118,0.00020995,2]
[322840994,1713387045183,-1360.699118,0.00020995,2]
[322840995,1713387045192,-178.212069,0.00020995,2]
[322840996,1713387045202,-178.212069,0.00020995,2]
[322840997,1713387045425,-244.455005,0.00020995,2]
[322840998,1713387045435,-244.455005,0.00020995,2]
[322840999,1713387045444,-243.52693,0.00020995,2]
[322841000,1713387045453,-222.78603,0.00020995,2]
[322841001,1713387045462,-151.0,0.00020995,2]
[322841002,1713387045471,-243.52693,0.00020995,2]
[322841003,1713387045480,-222.78603,0.00020995,2]
[322841004,1713387045489,-151.0,0.00020995,2]
[322841005,1713387045499,-151.0,0.00020995,2]
[322841006,1713387045508,-151.0,0.00020995,2]
[322841007,1713387045519,-151.0,0.00020995,2]
[322841008,1713387045529,-240.913985,0.00020995,2]
[322841009,1713387045539,-240.913985,0.00020995,2]
[322841010,1713387045548,-151.0,0.00020995,2]
[322841011,1713387045558,-151.0,0.00020995,2]
[322841012,1713387045567,-201.475293,0.00020995,2]
[322841013,1713387045578,-167.20253002,0.00020996,2]
[322841014,1713387045587,-261.51775987,0.00020996,2]
[322841015,1713387045597,-440.37569055,0.00020996,2]
[322841016,1713387045606,-155.0,0.00020996,2]
[322841017,1713387045616,-203.79893697,0.00020997,2]
[322841018,1713387045626,-199.5185368,0.00020998,5]
[322841019,1713387045636,-225766.77935948,0.00020998,2]
[322841020,1713387045647,-1352.97186749,0.00020998,2]
[322841021,1713387045655,-151.0,0.00020998,2]
[322841023,1713387045664,-151.0,0.00020998,2]
[322841025,1713387045675,-151.0,0.00020998,2]
[322841026,1713387045684,-282.295532,0.00020998,2]
[322841028,1713387045693,-282.295532,0.00020998,2]
[322841029,1713387045703,-151.0,0.00020998,2]
[322841031,1713387045713,-151.0,0.00020998,2]
[322841033,1713387045722,-396.9,0.00020998,2]
[322841034,1713387045732,-396.9,0.00020998,2]
[322841036,1713387045745,-151.0,0.00020998,2]
[322841038,1713387045755,-151.0,0.00020998,2]
[322841039,1713387045764,-151.0,0.00020998,2]
[322841041,1713387045773,-151.0,0.00020998,2]
[322841043,1713387045784,-315.577388,0.00020998,2]
[322841044,1713387045793,-315.577388,0.00020998,2]
[322841045,1713387045803,-151.0,0.00020998,2]
[322841046,1713387045814,-188.233173,0.00020998,2]
[322841047,1713387045823,-151.0,0.00020998,2]
[322841048,1713387045833,-151.0,0.00020998,2]
[322841050,1713387045842,-151.0,0.00020998,2]
[322841051,1713387045854,-151.0,0.00020998,2]
[322841052,1713387045865,-151.0,0.00020998,2]
[322841053,1713387045875,-214.63214,0.00020998,2]
[322841054,1713387045884,-214.63214,0.00020998,2]
[322841055,1713387045894,-1025.156381,0.00020998,2]
[322841056,1713387045905,-1025.156381,0.00020998,2]
[322841057,1713387045914,-151.0,0.00020998,2]
[322841058,1713387045924,-151.0,0.00020998,2]
[322841059,1713387045933,-155.88659,0.00020998,2]
[322841060,1713387045942,-221.074449,0.00020998,2]
[322841061,1713387045952,-221.074449,0.00020998,2]
[322841062,1713387045961,-182.660719,0.00020998,2]
[322841063,1713387045970,-182.660719,0.00020998,2]
[322841064,1713387045979,-279.63468,0.00020998,2]
[322841065,1713387045989,-279.63468,0.00020998,2]
[322841066,1713387045998,-155.698316,0.00020998,2]
[322841067,1713387046007,-155.698316,0.00020998,2]
[322841068,1713387046017,-151.0,0.00020998,2]
[322841069,1713387046026,-163299.50074603,0.00020999,2]
[322841070,1713387046402,-2695.72663196,0.00020999,2]
[322841071,1713387046414,-23710.50189442,0.00020999,2]
[322841072,1713387046456,-1505.85569998,0.00020999,2]
[322841073,1713387046483,-15000.0,0.00020999,2]
[322841074,1713387046494,-20387.49874412,0.00020999,2]
[322841075,1713387047073,-186.07241725,0.0002,2]
[322841076,1713387047084,-773.52019019,0.00020999,2]
[322841077,1713387047138,-332.00402996,0.00020999,2]
[322841078,1713387047689,-678.25000005,0.00020999,2]
[322841079,1713387047700,-635.88,0.00020999,2]
[322841080,1713387047715,-2013.4999997,0.00020999,2]
[322841081,1713387047726,-3177.0915,0.00020999,2]
[322841082,1713387047782,-2549.91155346,0.00020999,2]
[322841083,1713387047790,-27968.38844653,0.00020999,2]
[322841084,1713387047862,-36493.84441682,0.00020999,2]
[322841085,1713387048277,-979.91563258,0.00020795,2]
[322841086,1713387048287,-151.0,0.00020797,2]
[322841087,1713387048296,-174.2452299,0.000209,2]
[322841088,1713387048306,-2615.72267603,0.00020999,2]
[322841089,1713387048318,-396.87088712,0.00020999,2]
[322841090,1713387048329,-304.57538306,0.00020999,2]
[322841091,1713387048340,-885.19762788,0.00020999,2]
[322841092,1713387114182,18415.41278761,0.0001539,2]
[322841093,1713387126137,1597.1904,0.00015411,2]
[322841094,1713387150981,200.24439636,0.00015,2]
[322841095,1713387434371,444.74,0.00014442,2]
[322841096,1713387916405,422.5,0.00014426,2]
[322841285,1713388232039,-262.08510963,0.00016343,2]
[322841287,1713388232050,-993.48921037,0.00016343,2]
[322841288,1713388232060,-1388.64566752,0.00016343,2]
[322841289,1713388232089,-339.7200004,0.00016343,2]
[322841290,1713388232145,-325.09234905,0.00016343,2]
[322841291,1713388232157,-2927.19999997,0.00016343,2]
[322841292,1713388232173,-363.6,0.00016343,2]
[322841293,1713388232201,-6900.0,0.00016343,2]
[322841294,1713388232213,-3971.07024,0.00016343,2]
[322841295,1713388232224,-1434.40762737,0.00016343,2]
[322841296,1713388232313,-256.4326,0.00016343,2]
[322841297,1713388232324,-1030.80826547,0.00016343,2]
[322841298,1713388232335,-3969.53403985,0.00016343,2]
[322841299,1713388232344,-644.32,0.00016343,2]
[322841300,1713388232353,-183.86,0.00016345,2]
[322841301,1713388232362,-202.28596015,0.00016346,2]
[322841302,1713388232389,-65.56403985,0.00016346,2]
[322841303,1713388232399,-500.0,0.00016351,2]
[322841304,1713388232409,-355.68,0.00016354,2]
[322841305,1713388232418,-422.5,0.00016689,2]
[322841306,1713388232427,-1550.0,0.00017,2]
[322841308,1713388232438,-680.4379,0.00017238,2]
[322841310,1713388232448,-812.17775057,0.00017261,2]
[322841389,1713388238293,-359.97524943,0.00017261,2]
[322841390,1713388238302,-546.07829226,0.00017261,2]
[322841391,1713388238314,-1820.46670774,0.00017261,2]
[322841392,1713388238323,-73.38400726,0.00017276,2]
[322841393,1713388238334,-77.20268797,0.00017276,2]
[322841394,1713388238343,-565.74731198,0.00017276,2]
[322841395,1713388238355,-258.69268802,0.00017276,2]
[322841396,1713388238364,-259.55760251,0.00017292,2]
[322841397,1713388238373,-805.98897855,0.00017331,2]
[322841398,1713388238385,-29728.79651299,0.00017331,2]
[322841399,1713388238394,-244.14533383,0.00017331,2]
[322841400,1713388238403,-244.14533383,0.00017331,2]
[322841401,1713388238413,-30534.78549154,0.00017331,2]
[322841403,1713388238422,-664.17,0.00017331,2]
[322841405,1713388238431,-35190.02,0.00017331,2]
[322841407,1713388238440,-499.99,0.00017331,2]
[322841409,1713388238450,-312.0346603,0.00017333,2]
[322841411,1713388238459,-320.49553416,0.00017333,2]
[322841413,1713388238468,-2113.47668195,0.00017336,2]
[322841415,1713388238478,-30534.78549154,0.00017338,2]
[322841417,1713388238487,-244.14533383,0.00017339,2]
[322841419,1713388238496,-312.0346603,0.0001734,2]
[322841421,1713388238505,-320.49553416,0.00017342,2]
[322841423,1713388238514,-244.14533383,0.00017344,2]
[322841425,1713388238523,-320.49553415,0.00017345,2]
[322841427,1713388238532,-320.49553415,0.00017346,2]
[322841430,1713388238541,-312.0346603,0.00017346,2]
[322841434,1713388238550,-320.49553416,0.00017347,2]
[322841438,1713388238560,-320.49553416,0.00017349,2]
[322841440,1713388238570,-244.14533383,0.00017349,2]
[322841444,1713388238579,-320.49553415,0.00017349,2]
[322841447,1713388238588,-244.14533383,0.0001735,2]
[322841450,1713388238597,-28766.48616837,0.00017351,2]
[322841454,1713388238613,-630.4,0.00017351,2]
[322841457,1713388238624,-1137.89932317,0.00017351,2]
[322841459,1713388238633,-244.14533383,0.00017352,2]
[322841462,1713388238642,-312.0346603,0.00017353,2]
[322841464,1713388238650,-162.14688392,0.00017353,2]
[322841467,1713388238660,-153.32860787,0.00017358,2]
[322841469,1713388238672,-167.16692628,0.00017358,2]
[322841471,1713388238681,-2113.47668195,0.0001736,2]
[322841473,1713388238690,-30534.78549154,0.00017361,2]
[322841475,1713388238699,-320.49553416,0.00017362,2]
[322841477,1713388238708,-320.49553415,0.00017362,2]
[322841479,1713388238717,-320.49553415,0.00017362,2]
[322841481,1713388238726,-2113.47668195,0.00017363,2]
[322841483,1713388238735,-320.49553416,0.00017364,2]
[322841485,1713388238744,-162.14688392,0.00017364,2]
[322841487,1713388238753,-162.14688392,0.00017365,2]
[322841489,1713388238763,-2113.47668195,0.00017366,2]
[322841491,1713388238772,-30534.78549154,0.00017366,2]
[322841493,1713388238781,-2113.47668195,0.00017367,2]
[322841494,1713388238790,-320.49553415,0.00017369,2]
[322841495,1713388238799,-312.0346603,0.00017369,2]
[322841496,1713388238811,-162.14688392,0.0001737,2]
[322841498,1713388238820,-30534.78549154,0.00017372,2]
[322841500,1713388238830,-312.0346603,0.00017372,2]
[322841502,1713388238839,-2113.47668195,0.00017373,2]
[322841504,1713388238848,-162.14688392,0.00017376,2]
[322841506,1713388238857,-320.49553415,0.00017377,2]
[322841508,1713388238866,-312.0346603,0.00017378,2]
[322841510,1713388238875,-312.0346603,0.00017379,2]
[322841512,1713388238885,-312.0346603,0.00017379,2]
[322841515,1713388238899,-30534.78549154,0.00017382,2]
[322841517,1713388238908,-244.14533383,0.00017385,2]
[322841519,1713388238917,-2113.47668195,0.00017386,2]
[322841521,1713388238926,-244.14533383,0.00017389,2]
[322841523,1713388238936,-162.14688392,0.00017389,2]
[322841524,1713388238947,-2113.47668195,0.0001739,2]
[322841527,1713388238959,-162.14688392,0.0001739,2]
[322841528,1713388238969,-30534.78549154,0.00017392,2]
[322841531,1713388238979,-162.14688392,0.00017392,2]
[322841532,1713388238989,-162.14688392,0.00017393,2]
[322841534,1713388238999,-320.49553416,0.00017394,2]
[322841536,1713388239009,-320.49553416,0.00017395,2]
[322841538,1713388239018,-320.49553416,0.00017398,2]
[322841540,1713388239028,-320.49553415,0.00017399,2]
[322841542,1713388239038,-2113.47668195,0.00017399,2]
[322841544,1713388239047,-890.09487638,0.0001788,2]
[322841546,1713388239060,-890.09487633,0.0001788,2]
[322841548,1713388239071,-1089.33892648,0.0001788,2]
[322841550,1713388239082,-1089.33892644,0.0001788,2]
[322841552,1713388239094,-1105.09456412,0.00018,2]
[322841554,1713388239104,-870.19209402,0.00018,2]
[322841556,1713388239113,-870.19209402,0.00018,2]
[322841558,1713388239123,-870.19209402,0.00018,2]
[322841560,1713388239133,-870.19209402,0.00018,2]
[322841562,1713388239143,-870.19209402,0.00018,2]
[322841564,1713388239153,-870.19209402,0.00018,2]
[322841566,1713388239163,-870.19209402,0.00018,2]
[322841568,1713388239174,-870.19209402,0.00018,2]
[322841570,1713388239183,-870.19209402,0.00018,2]
[322841572,1713388239193,-870.19209402,0.00018,2]
[322841573,1713388239203,-870.19209402,0.00018,2]
[322841574,1713388239212,-870.19209402,0.00018,2]
[322841575,1713388239222,-870.19209402,0.00018,2]
[322841576,1713388239233,-870.19209402,0.00018,2]
[322841577,1713388239244,-870.19209402,0.00018,2]
[322841578,1713388239254,-870.19209402,0.00018,2]
[322841579,1713388239264,-870.19209402,0.00018,2]
[322841580,1713388239273,-870.19209402,0.00018,2]
[322841581,1713388239283,-870.19209402,0.00018,2]
[322841582,1713388239292,-870.19209402,0.00018,2]
[322841583,1713388239302,-890.09487633,0.00018053,2]
[322841585,1713388239313,-1089.33892644,0.00018053,2]
[322841587,1713388239325,-536.0,0.00018083,2]
[322841589,1713388239335,-529.0,0.00018083,2]
[322841591,1713388239345,-181.9,0.000181,2]
[322841593,1713388239355,-328.15410901,0.00018286,2]
[322841595,1713388239365,-151688.17152985,0.000183,3]
[322841597,1713388239374,-644.32,0.00018386,2]
[322841599,1713388239385,-355.68,0.00018398,2]
[322841601,1713388239395,-890.09487633,0.00018459,2]
[322841603,1713388239405,-1089.33892644,0.00018459,2]
[322841605,1713388239415,-150.58669521,0.00018484,2]
[322841607,1713388239425,-3035.0,0.000188,2]
[322841609,1713388239435,-890.09487633,0.00018866,2]
[322841611,1713388239446,-1089.33892644,0.00018866,2]
[322841613,1713388239456,-300.0,0.000189,6]
[322841615,1713388239466,-5721.0,0.00018927,2]
[322841617,1713388239476,-1737.0,0.00018927,2]
[322841619,1713388239485,-5885.0,0.00018927,2]
[322841621,1713388239495,-37635.0,0.00018927,2]
[322841622,1713388239505,-655.689,0.00018927,2]
[322841623,1713388239515,-422.5,0.00018953,2]
[322841624,1713388239525,-1600.0,0.00019,2]
[322841625,1713388239535,-183.86,0.00019085,2]
[322841626,1713388239546,-1500.0,0.0001916,2]
[322841627,1713388239557,-890.09487633,0.00019273,2]
[322841628,1713388239568,-1089.33892644,0.00019273,2]
[322841629,1713388239579,-155.47526339,0.00019354,2]
[322841630,1713388239589,-151.63,0.00019354,2]
[322841631,1713388239600,-245000.0,0.00019364,2]
[322841632,1713388239609,-1000.0,0.00019364,2]
[322841633,1713388239619,-6769.3144,0.00019364,2]
[322841634,1713388239629,-1500.0,0.00019386,2]
[322841635,1713388239639,-1967.0,0.00019584,2]
[322841636,1713388239650,-766.0,0.00019584,2]
[322841637,1713388239661,-1275.0,0.00019584,2]
[322841638,1713388239670,-439.025,0.00019584,2]
[322841639,1713388239679,-1254.0,0.00019584,2]
[322841640,1713388239689,-541.0,0.00019584,2]
[322841641,1713388239698,-1228.0,0.00019584,2]
[322841642,1713388239707,-436.0,0.00019584,2]
[322841643,1713388239717,-807.0,0.00019584,2]
[322841644,1713388239725,-606.0,0.00019584,2]
[322841645,1713388239734,-1949.0,0.00019584,2]
[322841646,1713388239744,-214.068,0.00019584,2]
[322841647,1713388239753,-2441.0,0.00019584,2]
[322841648,1713388239762,-1471.0,0.00019584,2]
[322841649,1713388239772,-387.0,0.00019584,2]
[322841650,1713388239781,-3042.0,0.00019584,2]
[322841651,1713388239790,-1204.742,0.00019584,2]
[322841652,1713388239799,-249.0,0.00019584,2]
[322841653,1713388239810,-357.0,0.00019584,2]
[322841654,1713388239822,-1140.0,0.00019584,2]
[322841655,1713388239832,-350.0,0.00019584,2]
[322841656,1713388239844,-890.09487633,0.0001968,2]
[322841657,1713388239854,-1089.33892644,0.0001968,2]
[322841658,1713388239864,-150.58669521,0.00019692,2]
[322841659,1713388239875,-150.0,0.00019791,2]
[322841660,1713388239885,-1148.01706295,0.00019899,2]
[322841661,1713388239896,-173.72120902,0.000199,2]
[322841662,1713388239906,-153.93692844,0.000199,2]
[322841663,1713388239915,-1160.87674727,0.000199,2]
[322841664,1713388239924,-1160.87674726,0.00019991,2]
[322841665,1713388239933,-3869.82317102,0.00019999,2]
[322841666,1713388239942,-6694.38,0.0002,2]
[322841667,1713388239952,-7720.84,0.0002,2]
[322841668,1713388239963,-88513.0723489,0.0002,2]
[322841669,1713388239973,-155.0,0.0002,4]
[322841670,1713388239983,-2150.12,0.0002,2]
[322841671,1713388239994,-176.0,0.0002,2]
[322841672,1713388240005,-8000.0,0.0002,2]
[322841673,1713388240015,-2867.17936331,0.0002,5]
[322841674,1713388240026,-600.0,0.0002,7]
[322841675,1713388240038,-84412.48588696,0.0002,2]
[322841676,1713388240047,-6219.13910648,0.0002,2]
[322841677,1713388240057,-20196.34585858,0.0002,2]
[322841678,1713388240067,-155.0,0.0002,2]
[322841679,1713388240079,-186.07241725,0.0002,2]
[322841680,1713388240092,-1765.57043751,0.0002,2]
[322841681,1713388240102,-339.86604696,0.0002,2]
[322841682,1713388240112,-339.86604696,0.0002,2]
[322841683,1713388240123,-339.86604696,0.0002,2]
[322841684,1713388240134,-339.86604696,0.0002,2]
[322841685,1713388240146,-339.86604696,0.0002,2]
[322841686,1713388240157,-339.86604696,0.0002,2]
[322841687,1713388240169,-339.86604696,0.0002,2]
[322841688,1713388240180,-339.86604696,0.0002,2]
[322841689,1713388240193,-339.86604696,0.0002,2]
[322841690,1713388240206,-339.86604696,0.0002,2]
[322841691,1713388240217,-339.86604696,0.0002,2]
[322841692,1713388240228,-339.86604696,0.0002,2]
[322841693,1713388240239,-339.86604696,0.0002,2]
[322841694,1713388240250,-339.86604696,0.0002,2]
[322841695,1713388240262,-339.86604696,0.0002,2]
[322841696,1713388240273,-339.86604696,0.0002,2]
[322841697,1713388240285,-339.86604696,0.0002,2]
[322841698,1713388240296,-339.86604696,0.0002,2]
[322841699,1713388240307,-339.86604696,0.0002,2]
[322841700,1713388240318,-641.27305155,0.0002,2]
[322841701,1713388240328,-339.86604696,0.0002,2]
[322841702,1713388240340,-339.86604696,0.0002,2]
[322841703,1713388240351,-339.86604696,0.0002,2]
[322841704,1713388240362,-339.86604696,0.0002,2]
[322841705,1713388240373,-339.86604696,0.0002,2]
[322841706,1713388240383,-339.86604696,0.0002,2]
[322841707,1713388240393,-339.86604696,0.0002,2]
[322841708,1713388240404,-339.86604696,0.0002,2]
[322841709,1713388240414,-339.86604696,0.0002,2]
[322841710,1713388240424,-339.86604696,0.0002,2]
[322841711,1713388240435,-339.86604696,0.0002,2]
[322841712,1713388240444,-339.86604696,0.0002,2]
[322841713,1713388240453,-339.86604696,0.0002,2]
[322841714,1713388240462,-339.86604696,0.0002,2]
[322841715,1713388240473,-339.86604696,0.0002,2]
[322841716,1713388240482,-339.86604696,0.0002,2]
[322841717,1713388240491,-339.86604696,0.0002,2]
[322841718,1713388240501,-339.86604696,0.0002,2]
[322841719,1713388240510,-339.86604696,0.0002,2]
[322841720,1713388240520,-339.86604696,0.0002,2]
[322841721,1713388240530,-339.86604696,0.0002,2]
[322841722,1713388240541,-339.86604696,0.0002,2]
[322841723,1713388240552,-339.86604696,0.0002,2]
[322841724,1713388240562,-339.86604696,0.0002,2]
[322841725,1713388240570,-339.86604696,0.0002,2]
[322841726,1713388240579,-339.86604696,0.0002,2]
[322841727,1713388240589,-339.86604696,0.0002,2]
[322841728,1713388240599,-339.86604696,0.0002,2]
[322841729,1713388240610,-339.86604696,0.0002,2]
[322841730,1713388240620,-339.86604696,0.0002,2]
[322841731,1713388240629,-339.86604696,0.0002,2]
[322841732,1713388240638,-3065.67342855,0.00020004,2]
[322841733,1713388240648,-8000.0,0.0002001,2]
[322841734,1713388240657,-8000.0,0.0002002,2]
[322841735,1713388240666,-1056.62,0.0002003,2]
[322841736,1713388240676,-1148.0170629,0.00020042,2]